[Event "Marshall CC U2400 03-2025"]
[Site "New York"]
[Date "2025.03.23"]
[Round "3.10"]
[White "McCoy, Boris"]
[Black "Yu, Vincent Zhiwen"]
[Result "0-1"]
[Annotator "NA RC"]
[ECO "A11"]
[WhiteElo "1781"]
[BlackElo "1859"]
[PlyCount "68"]
[EventDate "2025.03.20"]
[EventType "swiss"]
[EventCountry "USA"]
[SourceTitle "playchess.com"]
[Source "ChessBase"]
[SourceQuality "1"]
[TimeControl "5400+30"]

{[%evp 27,68,-1,0,32767,32767,32767,32767,32767,32767,32767,32767,20,6,15,33,12,48,38,35,-38,-2,-38,39,39,46,32767,-977,-559,-581,-606,-615,32767,32767,32767,-2149,-29993,32767,-29994,-29995,-29995,-29996,-29997,-29998]} 1. Nf3 {[%emt 0:00:03]} Nf6 {[%emt 0:00:11]} 2. g3 {[%emt 0:00:06]} g6 {[%emt 0:00:12]} 3. b3 {[%emt 0:00:06]} Bg7 {[%emt 0:00:15]} 4. Bb2 {[%emt 0:00:05]} d5 {[%emt 0:01:00]} 5. c4 {[%emt 0:00:39]} O-O {[%emt 0:00:56]} 6. Bg2 {[%emt 0:00:59]} c6 {[%emt 0:00:32]} 7. O-O {[%emt 0:00:43]} Bf5 {[%emt 0:01:28]} 8. d3 {[%emt 0:00:47]} a5 {[%emt 0:00:38]} 9. Nbd2 {[%emt 0:01:17] A11: English Opening: 1...c6.} Nbd7 {[%emt 0:01:28]} 10. Rc1 {[%emt 0:02:59]} Re8 {[%emt 0:01:54]} 11. Rc2 {[%emt 0:05:27]} e5 {[%emt 0:03:16]} 12. cxd5 {[%emt 0:01:39]} cxd5 {[%emt 0:00:17]} 13. Qa1 {[%emt 0:00:15]} d4 {[%emt 0:04:44]} 14. Ng5 {[%emt 0:05:02]} h6 {[%emt 0:04:53]} 15. Nge4 {[%emt 0:00:41]} Nxe4 {[%emt 0:00:30]} 16. Nxe4 {[%emt 0:00:10]} Bxe4 {[%emt 0:01:15]} 17. Bxe4 {[%emt 0:00:11]} Qb6 {[%emt 0:00:05]} 18. Rfc1 {[%emt 0:01:47]} Nf6 {[%emt 0:05:25]} 19. Bg2 {[%emt 0:00:45]} Rad8 {[%emt 1:11:01]} 20. Rc4 {[%emt 0:09:32]} h5 {[%emt 0:00:00]} 21. R1c2 {[%emt 0:01:44]} Kh7 {[%emt 0:00:00]} 22. Bc1 {[%emt 0:12:41]} e4 {[%emt 0:00:00]} 23. Bb2 {[%emt 0:04:41]} (23. Bg5 $14) 23... exd3 {[%emt 0:00:00]} 24. exd3 {[%emt 0:00:24]} Ng4 {[%emt 0:00:00]} ({Black should play} 24... Nd5 $11) 25. Rc7 {[%emt 0:03:41]} Qb4 {[%emt 0:00:00]} 26. Rxb7 {[%emt 0:14:31]} Re1+ {[%emt 0:00:00]} 27. Bf1 {[%emt 0:00:06]} Rxf1+ {[%emt 0:00:00]} ({Worse is} 27... Qxb7 28. Qxe1 Ne5 29. Be2 $16 (29. Qxa5 Nf3+ 30. Kh1 Nh4+ 31. Kg1 Nf3+ 32. Kh1 Nh4+ 33. Kg1 Nf3+ $11)) 28. Qxf1 {[%emt 0:01:54]} Qxb7 {[%emt 0:00:00]} 29. Qc1 {[%emt 0:04:28]} Qf3 {[%emt 0:00:00]} 30. Qd2 {[%emt 0:05:00]} Re8 {[%emt 0:00:00]} 31. Bc1 {[%emt 0:01:21]} Bh6 {[%emt 0:00:00]} 32. Qxa5 {[%emt 0:02:40]} Re2 {[%emt 0:00:00]} 33. Rxe2 {[%emt 0:02:00]} Qxe2 {[%emt 0:00:00]} 34. Qd2 {[%emt 0:03:17]} Bxd2 {[%emt 0:00:00]} 0-1